[Event "*** Titled Tuesday Blitz"]
[Site "Chess.com"]
[Date "2020.05.12"]
[Round "3"]
[White "Igor_Lysyj"]
[Black "aNaartjieZA"]
[Result "1-0"]
[WhiteElo "2792"]
[BlackElo "2596"]
[TimeControl "180+1"]
[EndTime "10:28:09 PDT"]
[Termination "Igor_Lysyj won by resignation"]

1. d4 {[%clk 0:03:00.2]} 1... Nf6 {[%clk 0:02:59.9]} 2. c4 {[%clk 0:02:59.9]}
2... c5 {[%clk 0:03:00]} 3. d5 {[%clk 0:02:59.5]} 3... e5 {[%clk 0:03:00.1]} 4.
Nc3 {[%clk 0:02:58.7]} 4... d6 {[%clk 0:03:00.1]} 5. e4 {[%clk 0:02:58.4]} 5...
Be7 {[%clk 0:03:00.3]} 6. g3 {[%clk 0:02:58.5]} 6... Nbd7 {[%clk 0:03:00.6]} 7.
Bg2 {[%clk 0:02:58.3]} 7... h5 {[%clk 0:02:58.9]} 8. h4 {[%clk 0:02:53.9]} 8...
Nf8 {[%clk 0:02:58.5]} 9. Nge2 {[%clk 0:02:51.6]} 9... Ng6 {[%clk 0:02:53.8]}
10. f3 {[%clk 0:02:50.2]} 10... Nd7 {[%clk 0:02:52.9]} 11. Be3 {[%clk
0:02:48.7]} 11... Ngf8 {[%clk 0:02:51.7]} 12. Qd2 {[%clk 0:02:47.5]} 12... Nh7
{[%clk 0:02:51.5]} 13. Bh3 {[%clk 0:02:43.9]} 13... Nb6 {[%clk 0:02:50.3]} 14.
b3 {[%clk 0:02:41.6]} 14... Bxh3 {[%clk 0:02:49]} 15. Rxh3 {[%clk 0:02:41.2]}
15... Qd7 {[%clk 0:02:48.8]} 16. Rh1 {[%clk 0:02:40.1]} 16... f5 {[%clk
0:02:48.4]} 17. O-O-O {[%clk 0:02:34.7]} 17... fxe4 {[%clk 0:02:46.9]} 18. Nxe4
{[%clk 0:02:33.2]} 18... a5 {[%clk 0:02:40.7]} 19. a4 {[%clk 0:02:30.3]} 19...
Qf5 {[%clk 0:02:22.8]} 20. Rdf1 {[%clk 0:02:27.6]} 20... Nd7 {[%clk 0:02:20.8]}
21. N2c3 {[%clk 0:02:24.8]} 21... Ndf6 {[%clk 0:02:06.1]} 22. Ng5 {[%clk
0:02:10.8]} 22... Nxg5 {[%clk 0:01:59.9]} 23. hxg5 {[%clk 0:02:10.5]} 23... Nd7
{[%clk 0:01:59.1]} 24. g4 {[%clk 0:02:09.5]} 24... Qg6 {[%clk 0:01:55.7]} 25.
Ne4 {[%clk 0:01:47.4]} 25... h4 {[%clk 0:01:47.3]} 26. Rh3 {[%clk 0:01:42.4]}
26... b6 {[%clk 0:01:46.2]} 27. Rfh1 {[%clk 0:01:40.6]} 27... O-O-O {[%clk
0:01:46.2]} 28. Rxh4 {[%clk 0:01:38.7]} 28... Rxh4 {[%clk 0:01:47.1]} 29. Rxh4
{[%clk 0:01:38.2]} 29... Rf8 {[%clk 0:01:47.7]} 30. Qe2 {[%clk 0:01:27.6]} 30...
Kc7 {[%clk 0:01:47.4]} 31. Qg2 {[%clk 0:01:23.6]} 31... Rg8 {[%clk 0:01:44.8]}
32. Kd2 {[%clk 0:01:22.4]} 32... Qf7 {[%clk 0:01:44.7]} 33. Ke2 {[%clk
0:01:20.4]} 33... Nf8 {[%clk 0:01:44.8]} 34. Rh3 {[%clk 0:00:59.9]} 34... Ng6
{[%clk 0:01:43.7]} 35. Qh1 {[%clk 0:00:59]} 35... Nf4+ {[%clk 0:01:30.6]} 36.
Bxf4 {[%clk 0:00:57.4]} 36... Qxf4 {[%clk 0:01:30.8]} 37. Rh8 {[%clk 0:00:51.5]}
37... Qf8 {[%clk 0:01:20.1]} 38. Rxg8 {[%clk 0:00:50.6]} 38... Qxg8 {[%clk
0:01:19.9]} 39. g6 {[%clk 0:00:49.2]} 39... Qf8 {[%clk 0:01:17.8]} 40. Qh7
{[%clk 0:00:48.3]} 40... Kd7 {[%clk 0:01:00.3]} 41. Kf2 {[%clk 0:00:44.8]} 41...
Ke8 {[%clk 0:00:58.6]} 42. Kg2 {[%clk 0:00:43.3]} 42... Kd7 {[%clk 0:00:58.4]}
43. g5 {[%clk 0:00:38.6]} 43... Kc7 {[%clk 0:00:55.5]} 44. Qh3 {[%clk
0:00:32.9]} 44... Qc8 {[%clk 0:00:53.8]} 45. Qxc8+ {[%clk 0:00:31.6]} 45... Kxc8
{[%clk 0:00:53.9]} 46. Kg3 {[%clk 0:00:31.8]} 46... Kd7 {[%clk 0:00:52.7]} 47.
f4 {[%clk 0:00:31.6]} 47... exf4+ {[%clk 0:00:52.2]} 48. Kxf4 {[%clk 0:00:31.6]}
48... Bd8 {[%clk 0:00:52.5]} 49. Kf5 {[%clk 0:00:31.5]} 49... Ke7 {[%clk
0:00:51.9]} 50. Ng3 {[%clk 0:00:30.5]} 50... Kf8 {[%clk 0:00:46.9]} 51. Ke6
{[%clk 0:00:29.5]} 51... Bxg5 {[%clk 0:00:46.6]} 52. Nf5 {[%clk 0:00:28.7]} 1-0

[Event "*** Titled Tuesday Blitz"]
[Site "Chess.com"]
[Date "2020.05.12"]
[Round "3"]
[White "Gentlejimmy7"]
[Black "Grandelicious"]
[Result "1-0"]
[WhiteElo "2579"]
[BlackElo "2740"]
[TimeControl "180+1"]
[EndTime "10:28:09 PDT"]
[Termination "Gentlejimmy7 won by checkmate"]

1. d4 {[%clk 0:02:27.7]} 1... Nf6 {[%clk 0:02:59.3]} 2. g3 {[%clk 0:02:24.4]}
2... c5 {[%clk 0:02:55.3]} 3. Nf3 {[%clk 0:02:15.8]} 3... cxd4 {[%clk
0:02:52.6]} 4. Nxd4 {[%clk 0:02:16.7]} 4... e5 {[%clk 0:02:52.8]} 5. Nb3 {[%clk
0:02:16.8]} 5... d5 {[%clk 0:02:52.3]} 6. Bg2 {[%clk 0:02:17.1]} 6... Be6 {[%clk
0:02:51.5]} 7. O-O {[%clk 0:02:15.3]} 7... Be7 {[%clk 0:02:39.3]} 8. e4 {[%clk
0:02:14.7]} 8... Nxe4 {[%clk 0:02:37.5]} 9. c4 {[%clk 0:02:14.3]} 9... Nc6
{[%clk 0:02:30.2]} 10. cxd5 {[%clk 0:02:11.1]} 10... Bxd5 {[%clk 0:02:31.1]} 11.
Qe2 {[%clk 0:02:06.3]} 11... Bxb3 {[%clk 0:02:04]} 12. axb3 {[%clk 0:01:55.9]}
12... Nc5 {[%clk 0:01:59.7]} 13. Bxc6+ {[%clk 0:01:50.1]} 13... bxc6 {[%clk
0:02:00.6]} 14. Qxe5 {[%clk 0:01:50.4]} 14... O-O {[%clk 0:01:58.8]} 15. Nc3
{[%clk 0:01:42.4]} 15... Nxb3 {[%clk 0:01:47.2]} 16. Rd1 {[%clk 0:01:35.1]}
16... Bf6 {[%clk 0:01:38]} 17. Qe2 {[%clk 0:01:03.6]} 17... Qc8 {[%clk
0:01:16.8]} 18. Ra3 {[%clk 0:01:01.3]} 18... Nd4 {[%clk 0:01:15.1]} 19. Qh5
{[%clk 0:00:46]} 19... g6 {[%clk 0:01:07.4]} 20. Qc5 {[%clk 0:00:39.6]} 20...
Qg4 {[%clk 0:01:04.3]} 21. Be3 {[%clk 0:00:33.8]} 21... Ne6 {[%clk 0:00:47.4]}
22. Qxc6 {[%clk 0:00:27.1]} 22... Bxc3 {[%clk 0:00:46.3]} 23. f3 {[%clk
0:00:27.6]} 23... Qf5 {[%clk 0:00:26.5]} 24. Rxc3 {[%clk 0:00:27.2]} 24... Rad8
{[%clk 0:00:25.2]} 25. Rcc1 {[%clk 0:00:23.9]} 25... Rxd1+ {[%clk 0:00:20.3]}
26. Rxd1 {[%clk 0:00:23.6]} 26... h5 {[%clk 0:00:19.5]} 27. Qe4 {[%clk
0:00:23.8]} 27... Qb5 {[%clk 0:00:19.1]} 28. Qc2 {[%clk 0:00:21.4]} 28... a5
{[%clk 0:00:18.2]} 29. Kg2 {[%clk 0:00:18.4]} 29... Rb8 {[%clk 0:00:17.9]} 30.
Rd2 {[%clk 0:00:18]} 30... a4 {[%clk 0:00:18.1]} 31. Qe4 {[%clk 0:00:16.6]}
31... Qb3 {[%clk 0:00:15.5]} 32. Qe5 {[%clk 0:00:15.3]} 32... Re8 {[%clk
0:00:15.3]} 33. Bd4 {[%clk 0:00:14.4]} 33... Kf8 {[%clk 0:00:13.5]} 34. Qg7+
{[%clk 0:00:11.8]} 34... Ke7 {[%clk 0:00:14]} 35. Bf6# {[%clk 0:00:12.2]} 1-0

[Event "*** Titled Tuesday Blitz"]
[Site "Chess.com"]
[Date "2020.05.12"]
[Round "3"]
[White "tan275"]
[Black "Flawless_Fighter"]
[Result "0-1"]
[WhiteElo "2177"]
[BlackElo "2479"]
[TimeControl "180+1"]
[EndTime "10:28:09 PDT"]
[Termination "Flawless_Fighter won by checkmate"]

1. d4 {[%clk 0:03:00.9]} 1... Nf6 {[%clk 0:02:59.8]} 2. c4 {[%clk 0:03:00.6]}
2... e6 {[%clk 0:03:00.2]} 3. Nc3 {[%clk 0:02:55.8]} 3... Bb4 {[%clk 0:02:58.9]}
4. Nf3 {[%clk 0:02:55]} 4... d5 {[%clk 0:02:55.5]} 5. a3 {[%clk 0:02:52]} 5...
Bxc3+ {[%clk 0:02:54]} 6. bxc3 {[%clk 0:02:52.5]} 6... O-O {[%clk 0:02:52.6]} 7.
e3 {[%clk 0:02:51.1]} 7... b6 {[%clk 0:02:51.5]} 8. cxd5 {[%clk 0:02:44.8]} 8...
exd5 {[%clk 0:02:49.1]} 9. Bd3 {[%clk 0:02:06.7]} 9... c5 {[%clk 0:02:48.4]} 10.
O-O {[%clk 0:01:59.5]} 10... Ba6 {[%clk 0:02:47.7]} 11. Bxa6 {[%clk 0:01:56.5]}
11... Nxa6 {[%clk 0:02:48.6]} 12. a4 {[%clk 0:01:51.2]} 12... Rc8 {[%clk
0:02:39.6]} 13. a5 {[%clk 0:01:38.7]} 13... b5 {[%clk 0:01:58]} 14. dxc5 {[%clk
0:01:37.1]} 14... Nxc5 {[%clk 0:01:52.8]} 15. Ba3 {[%clk 0:01:36.3]} 15... Nfe4
{[%clk 0:01:48.8]} 16. Nd4 {[%clk 0:01:22.8]} 16... a6 {[%clk 0:01:40.4]} 17.
Rc1 {[%clk 0:01:15.2]} 17... Re8 {[%clk 0:01:38.3]} 18. Bb4 {[%clk 0:01:13.8]}
18... Qg5 {[%clk 0:01:29.7]} 19. Re1 {[%clk 0:00:58.5]} 19... h5 {[%clk
0:01:24.6]} 20. Qf3 {[%clk 0:00:54.6]} 20... Nd3 {[%clk 0:01:14.1]} 21. Nf5
{[%clk 0:00:32.6]} 21... Re6 {[%clk 0:00:46.2]} 22. Red1 {[%clk 0:00:26.2]}
22... Nxc1 {[%clk 0:00:44.4]} 23. Rxd5 {[%clk 0:00:25.4]} 23... Qf6 {[%clk
0:00:29.6]} 24. Qh3 {[%clk 0:00:09.4]} 24... Rce8 {[%clk 0:00:10.6]} 25. Nd4
{[%clk 0:00:06.2]} 25... Re5 {[%clk 0:00:07.3]} 26. Rxe5 {[%clk 0:00:01.9]}
26... Qxf2+ {[%clk 0:00:07.4]} 27. Kh1 {[%clk 0:00:01.9]} 27... Qf1# {[%clk
0:00:08.1]} 0-1

[Event "*** Titled Tuesday Blitz"]
[Site "Chess.com"]
[Date "2020.05.12"]
[Round "3"]
[White "beto-betun"]
[Black "Quattroporte300"]
[Result "1-0"]
[WhiteElo "2126"]
[BlackElo "2324"]
[TimeControl "180+1"]
[EndTime "10:28:09 PDT"]
[Termination "beto-betun won by resignation"]

1. d4 {[%clk 0:02:54.8]} 1... Nf6 {[%clk 0:02:59.5]} 2. c4 {[%clk 0:02:54.3]}
2... e6 {[%clk 0:02:59.8]} 3. Nf3 {[%clk 0:02:52]} 3... d5 {[%clk 0:02:59.5]} 4.
g3 {[%clk 0:02:48.7]} 4... dxc4 {[%clk 0:02:59.2]} 5. Bg2 {[%clk 0:02:48.2]}
5... c5 {[%clk 0:02:59.3]} 6. O-O {[%clk 0:02:43.8]} 6... Nc6 {[%clk 0:02:59.6]}
7. dxc5 {[%clk 0:02:39.1]} 7... Qxd1 {[%clk 0:02:57.6]} 8. Rxd1 {[%clk 0:02:40]}
8... Bxc5 {[%clk 0:02:57.7]} 9. Nbd2 {[%clk 0:02:37.1]} 9... c3 {[%clk
0:02:40.1]} 10. bxc3 {[%clk 0:02:36.4]} 10... O-O {[%clk 0:02:41]} 11. Nb3
{[%clk 0:02:33.3]} 11... Bb6 {[%clk 0:02:38.7]} 12. c4 {[%clk 0:02:29.7]} 12...
Ne4 {[%clk 0:02:33.9]} 13. e3 {[%clk 0:02:26.7]} 13... e5 {[%clk 0:02:20.5]} 14.
Bb2 {[%clk 0:02:24.3]} 14... Re8 {[%clk 0:01:52.5]} 15. Rd5 {[%clk 0:02:17.2]}
15... Be6 {[%clk 0:01:49.2]} 16. Rdd1 {[%clk 0:02:17.3]} 16... Bxc4 {[%clk
0:01:48]} 17. Nxe5 {[%clk 0:02:03.6]} 17... Nxf2 {[%clk 0:01:20.7]} 18. Nxc4
{[%clk 0:01:44.2]} 18... Nxd1 {[%clk 0:01:19.5]} 19. Rxd1 {[%clk 0:01:43]} 19...
Bxe3+ {[%clk 0:01:16.2]} 20. Nxe3 {[%clk 0:01:38.5]} 20... Rxe3 {[%clk
0:01:17.1]} 21. Kf2 {[%clk 0:01:33.6]} 21... Rae8 {[%clk 0:01:14.6]} 22. Bf3
{[%clk 0:01:33.4]} 22... h6 {[%clk 0:01:08.9]} 23. Nc5 {[%clk 0:01:27.5]} 23...
Na5 {[%clk 0:01:02.6]} 24. h4 {[%clk 0:00:49.8]} 24... b6 {[%clk 0:00:58.9]} 25.
Nd3 {[%clk 0:00:47.7]} 25... Nc4 {[%clk 0:00:58.1]} 26. Bd4 {[%clk 0:00:45.9]}
26... R3e7 {[%clk 0:00:57.5]} 27. Nf4 {[%clk 0:00:35.7]} 27... Rd8 {[%clk
0:00:55.4]} 28. Nd5 {[%clk 0:00:33.6]} 28... Red7 {[%clk 0:00:51.6]} 29. Bc3
{[%clk 0:00:18.7]} 29... b5 {[%clk 0:00:40.4]} 30. Ne7+ {[%clk 0:00:14.2]} 30...
Kf8 {[%clk 0:00:39.3]} 31. Rxd7 {[%clk 0:00:11.8]} 31... Rxd7 {[%clk 0:00:39.3]}
32. Nf5 {[%clk 0:00:11.4]} 32... a6 {[%clk 0:00:31.1]} 33. Bxg7+ {[%clk
0:00:10.1]} 33... Ke8 {[%clk 0:00:26.1]} 34. Bxh6 {[%clk 0:00:10.5]} 34... Nd2
{[%clk 0:00:22.2]} 35. Bc6 {[%clk 0:00:07.9]} 35... Kd8 {[%clk 0:00:18.9]} 36.
Bxd7 {[%clk 0:00:08]} 36... Kxd7 {[%clk 0:00:19.6]} 37. Bxd2 {[%clk 0:00:08.3]}
1-0

[Event "*** Titled Tuesday Blitz"]
[Site "Chess.com"]
[Date "2020.05.12"]
[Round "3"]
[White "viktorskliarov"]
[Black "S2PAc"]
[Result "0-1"]
[WhiteElo "2589"]
[BlackElo "2777"]
[TimeControl "180+1"]
[EndTime "10:28:10 PDT"]
[Termination "S2PAc won by checkmate"]

1. e4 {[%clk 0:03:00.9]} 1... c6 {[%clk 0:03:00.1]} 2. d4 {[%clk 0:03:00.8]}
2... d5 {[%clk 0:03:01]} 3. e5 {[%clk 0:03:00.7]} 3... c5 {[%clk 0:03:01.1]} 4.
Nf3 {[%clk 0:03:01.4]} 4... Nc6 {[%clk 0:02:59.6]} 5. dxc5 {[%clk 0:02:58.5]}
5... Bg4 {[%clk 0:02:58.7]} 6. Bb5 {[%clk 0:02:57]} 6... Qa5+ {[%clk 0:02:57.8]}
7. Nc3 {[%clk 0:02:55.8]} 7... e6 {[%clk 0:02:58.1]} 8. Be3 {[%clk 0:02:48]}
8... Ne7 {[%clk 0:02:57.3]} 9. a3 {[%clk 0:02:37.3]} 9... Qc7 {[%clk 0:02:57.3]}
10. Bd4 {[%clk 0:02:26.7]} 10... Nf5 {[%clk 0:02:48.6]} 11. h3 {[%clk
0:01:51.6]} 11... Bxf3 {[%clk 0:02:41.9]} 12. gxf3 {[%clk 0:01:51.5]} 12... g6
{[%clk 0:02:15.1]} 13. b4 {[%clk 0:01:40.4]} 13... Bg7 {[%clk 0:01:56.5]} 14. f4
{[%clk 0:01:40.3]} 14... O-O {[%clk 0:01:52.6]} 15. Bxc6 {[%clk 0:01:38.6]}
15... bxc6 {[%clk 0:01:53.5]} 16. Ne2 {[%clk 0:01:35.2]} 16... a5 {[%clk
0:01:38.4]} 17. c3 {[%clk 0:01:34.7]} 17... Rae8 {[%clk 0:01:33.4]} 18. Qd3
{[%clk 0:00:54.3]} 18... f6 {[%clk 0:01:28.4]} 19. exf6 {[%clk 0:00:54.5]} 19...
Bxf6 {[%clk 0:01:28.5]} 20. b5 {[%clk 0:00:50.4]} 20... cxb5 {[%clk 0:01:20.3]}
21. Qxb5 {[%clk 0:00:50.2]} 21... e5 {[%clk 0:00:44.1]} 22. fxe5 {[%clk
0:00:50.1]} 22... Bxe5 {[%clk 0:00:44.8]} 23. O-O-O {[%clk 0:00:50.4]} 23...
Bxd4 {[%clk 0:00:38.7]} 24. Nxd4 {[%clk 0:00:32.7]} 24... Qf4+ {[%clk
0:00:35.3]} 25. Rd2 {[%clk 0:00:32.2]} 25... Nxd4 {[%clk 0:00:33]} 26. cxd4
{[%clk 0:00:32]} 26... Qf3 {[%clk 0:00:33.6]} 27. Rhd1 {[%clk 0:00:15.6]} 27...
Qxa3+ {[%clk 0:00:26.4]} 28. Qb2 {[%clk 0:00:15.6]} 28... Qxh3 {[%clk
0:00:26.7]} 29. Qa2 {[%clk 0:00:14.3]} 29... Qf3 {[%clk 0:00:23.5]} 30. Rd3
{[%clk 0:00:13.5]} 30... Qf4+ {[%clk 0:00:23.2]} 31. R1d2 {[%clk 0:00:13.8]}
31... Re1+ {[%clk 0:00:20.1]} 32. Kc2 {[%clk 0:00:13.9]} 32... Qf5 {[%clk
0:00:20.6]} 33. Qxa5 {[%clk 0:00:12.5]} 33... Rb8 {[%clk 0:00:17.3]} 34. c6
{[%clk 0:00:12.8]} 34... Reb1 {[%clk 0:00:16.2]} 35. c7 {[%clk 0:00:12.1]} 35...
R1b2+ {[%clk 0:00:16.3]} 36. Kc3 {[%clk 0:00:12.5]} 36... R8b3# {[%clk
0:00:15.4]} 0-1

[Event "*** Titled Tuesday Blitz"]
[Site "Chess.com"]
[Date "2020.05.12"]
[Round "3"]
[White "FMalexhdez"]
[Black "NZT72"]
[Result "0-1"]
[WhiteElo "2028"]
[BlackElo "2467"]
[TimeControl "180+1"]
[EndTime "10:28:12 PDT"]
[Termination "NZT72 won by resignation"]

1. e4 {[%clk 0:02:55.4]} 1... e5 {[%clk 0:02:56.9]} 2. Nf3 {[%clk 0:02:55]} 2...
Nc6 {[%clk 0:02:57.1]} 3. Bc4 {[%clk 0:02:54.9]} 3... Bc5 {[%clk 0:02:56.7]} 4.
O-O {[%clk 0:02:53.4]} 4... Nf6 {[%clk 0:02:56.4]} 5. d3 {[%clk 0:02:53.2]} 5...
d6 {[%clk 0:02:56.1]} 6. c3 {[%clk 0:02:52.7]} 6... h6 {[%clk 0:02:55.1]} 7.
Nbd2 {[%clk 0:02:50.9]} 7... a5 {[%clk 0:02:52.3]} 8. Bb3 {[%clk 0:02:41.7]}
8... O-O {[%clk 0:02:49.3]} 9. h3 {[%clk 0:02:30.7]} 9... Ne7 {[%clk 0:02:27.9]}
10. Re1 {[%clk 0:02:18.9]} 10... Ng6 {[%clk 0:02:24.1]} 11. d4 {[%clk
0:02:12.1]} 11... Ba7 {[%clk 0:02:11.9]} 12. Nf1 {[%clk 0:02:09.6]} 12... c6
{[%clk 0:01:39.9]} 13. Ng3 {[%clk 0:02:08.1]} 13... Re8 {[%clk 0:01:30.5]} 14.
Nf5 {[%clk 0:02:03.9]} 14... d5 {[%clk 0:01:13.9]} 15. dxe5 {[%clk 0:01:21.3]}
15... Nxe4 {[%clk 0:01:13.6]} 16. N5d4 {[%clk 0:01:00.7]} 16... Nxe5 {[%clk
0:00:54.6]} 17. Nxe5 {[%clk 0:00:58.1]} 17... Rxe5 {[%clk 0:00:53.8]} 18. Bf4
{[%clk 0:00:55.6]} 18... Re8 {[%clk 0:00:50.4]} 19. Bc2 {[%clk 0:00:49.6]} 19...
Bd7 {[%clk 0:00:45.6]} 20. Qh5 {[%clk 0:00:45.6]} 20... Qf6 {[%clk 0:00:40.2]}
21. Be3 {[%clk 0:00:40.2]} 21... Bb8 {[%clk 0:00:26.6]} 22. Re2 {[%clk
0:00:27.4]} 22... Qd6 {[%clk 0:00:20.1]} 23. g3 {[%clk 0:00:20.4]} 23... Nxg3
{[%clk 0:00:19.6]} 24. fxg3 {[%clk 0:00:15.4]} 24... Qxg3+ {[%clk 0:00:19.7]}
25. Rg2 {[%clk 0:00:15.4]} 25... Qxe3+ {[%clk 0:00:19.6]} 26. Kh1 {[%clk
0:00:15.1]} 26... Qxh3+ {[%clk 0:00:19.1]} 27. Qxh3 {[%clk 0:00:15]} 27... Bxh3
{[%clk 0:00:19.9]} 28. Rf2 {[%clk 0:00:11.7]} 28... Bd7 {[%clk 0:00:18.4]} 29.
Rg1 {[%clk 0:00:09.7]} 29... Be5 {[%clk 0:00:17.2]} 30. Nf5 {[%clk 0:00:06.6]}
30... Bxf5 {[%clk 0:00:16.7]} 31. Rxf5 {[%clk 0:00:06.6]} 31... g6 {[%clk
0:00:15.3]} 32. Rf3 {[%clk 0:00:03.8]} 32... Kg7 {[%clk 0:00:12.8]} 0-1

[Event "*** Titled Tuesday Blitz"]
[Site "Chess.com"]
[Date "2020.05.12"]
[Round "3"]
[White "Alexander_Moskalenko"]
[Black "MarcoRiehle"]
[Result "1-0"]
[WhiteElo "2817"]
[BlackElo "2612"]
[TimeControl "180+1"]
[EndTime "10:28:13 PDT"]
[Termination "Alexander_Moskalenko won by checkmate"]

1. d4 {[%clk 0:02:54.8]} 1... d5 {[%clk 0:02:59.6]} 2. Bg5 {[%clk 0:02:46.6]}
2... f6 {[%clk 0:02:58.4]} 3. Bh4 {[%clk 0:02:44.9]} 3... c5 {[%clk 0:02:58.1]}
4. e3 {[%clk 0:02:45]} 4... Nc6 {[%clk 0:02:57.6]} 5. Nf3 {[%clk 0:02:41.6]}
5... e6 {[%clk 0:02:48.1]} 6. c4 {[%clk 0:02:39.6]} 6... cxd4 {[%clk 0:02:40.8]}
7. Nxd4 {[%clk 0:02:35.3]} 7... Bb4+ {[%clk 0:02:33.8]} 8. Nc3 {[%clk
0:02:33.5]} 8... Nge7 {[%clk 0:02:32.8]} 9. Nxc6 {[%clk 0:02:17.2]} 9... bxc6
{[%clk 0:02:32.4]} 10. Bd3 {[%clk 0:02:17.6]} 10... O-O {[%clk 0:02:17.1]} 11.
O-O {[%clk 0:02:10.4]} 11... e5 {[%clk 0:02:16.6]} 12. cxd5 {[%clk 0:02:06.9]}
12... cxd5 {[%clk 0:02:16.1]} 13. Qb3 {[%clk 0:01:47.2]} 13... Rb8 {[%clk
0:02:07.8]} 14. Rfd1 {[%clk 0:01:45.7]} 14... Be6 {[%clk 0:02:05.4]} 15. a3
{[%clk 0:01:39.3]} 15... Bc5 {[%clk 0:01:56.1]} 16. Qc2 {[%clk 0:01:38.9]} 16...
g6 {[%clk 0:01:33.9]} 17. Bc4 {[%clk 0:01:06.7]} 17... Qd7 {[%clk 0:01:08.3]}
18. Ne4 {[%clk 0:01:00.8]} 18... Qc6 {[%clk 0:00:53.9]} 19. Nxf6+ {[%clk
0:00:34.7]} 19... Rxf6 {[%clk 0:00:53]} 20. Bxf6 {[%clk 0:00:35.6]} 20... dxc4
{[%clk 0:00:53.6]} 21. Bxe5 {[%clk 0:00:35.5]} 21... Rf8 {[%clk 0:00:45.9]} 22.
Bd4 {[%clk 0:00:35.2]} 22... Bd6 {[%clk 0:00:35.9]} 23. Rac1 {[%clk 0:00:28.4]}
23... Nf5 {[%clk 0:00:32.3]} 24. Bc3 {[%clk 0:00:23]} 24... Nh4 {[%clk
0:00:29.8]} 25. e4 {[%clk 0:00:20.6]} 25... Qc7 {[%clk 0:00:19.9]} 26. Rxd6
{[%clk 0:00:20.3]} 26... Qxd6 {[%clk 0:00:19.5]} 27. Bb4 {[%clk 0:00:20.8]}
27... Qf4 {[%clk 0:00:13]} 28. Bxf8 {[%clk 0:00:21]} 28... Qg4 {[%clk
0:00:09.5]} 29. f3 {[%clk 0:00:21.2]} 29... Nxf3+ {[%clk 0:00:08]} 30. Kh1
{[%clk 0:00:21.2]} 30... Ng5 {[%clk 0:00:02.1]} 31. Bh6 {[%clk 0:00:18.3]} 31...
Nxe4 {[%clk 0:00:02]} 32. Rf1 {[%clk 0:00:18.2]} 32... Bf5 {[%clk 0:00:01.8]}
33. Qxc4+ {[%clk 0:00:17.6]} 33... Kh8 {[%clk 0:00:02.1]} 34. Qc8+ {[%clk
0:00:17]} 34... Bxc8 {[%clk 0:00:01.9]} 35. Rf8# {[%clk 0:00:17.9]} 1-0

[Event "*** Titled Tuesday Blitz"]
[Site "Chess.com"]
[Date "2020.05.12"]
[Round "3"]
[White "PIwan"]
[Black "Matalon"]
[Result "0-1"]
[WhiteElo "2515"]
[BlackElo "2350"]
[TimeControl "180+1"]
[EndTime "10:28:13 PDT"]
[Termination "Matalon won on time"]

1. c4 {[%clk 0:03:00.9]} 1... Nf6 {[%clk 0:02:58.4]} 2. Nc3 {[%clk 0:03:00.9]}
2... g6 {[%clk 0:02:58.9]} 3. e4 {[%clk 0:03:01.4]} 3... d6 {[%clk 0:02:59.5]}
4. d4 {[%clk 0:03:02.1]} 4... Bg7 {[%clk 0:03:00.1]} 5. f3 {[%clk 0:03:02.2]}
5... O-O {[%clk 0:03:00.5]} 6. Bg5 {[%clk 0:03:02.8]} 6... c5 {[%clk 0:02:59]}
7. d5 {[%clk 0:03:02.8]} 7... h6 {[%clk 0:02:59]} 8. Be3 {[%clk 0:03:02.1]} 8...
e6 {[%clk 0:02:58.4]} 9. Qd2 {[%clk 0:03:02.5]} 9... a6 {[%clk 0:02:58.6]} 10.
a4 {[%clk 0:03:02.5]} 10... exd5 {[%clk 0:02:58.1]} 11. cxd5 {[%clk 0:03:03.4]}
11... Re8 {[%clk 0:02:57.6]} 12. Nge2 {[%clk 0:03:03.6]} 12... h5 {[%clk
0:02:55.5]} 13. Nf4 {[%clk 0:03:03.4]} 13... Nbd7 {[%clk 0:02:53.1]} 14. Be2
{[%clk 0:03:03.7]} 14... Ne5 {[%clk 0:02:53]} 15. O-O {[%clk 0:03:02.4]} 15...
Bd7 {[%clk 0:02:52.8]} 16. b3 {[%clk 0:03:00.7]} 16... b5 {[%clk 0:02:46.6]} 17.
axb5 {[%clk 0:02:59.4]} 17... axb5 {[%clk 0:02:46.7]} 18. Rxa8 {[%clk
0:02:53.9]} 18... Qxa8 {[%clk 0:02:45.9]} 19. Bxb5 {[%clk 0:02:50]} 19... Bxb5
{[%clk 0:02:36.1]} 20. Nxb5 {[%clk 0:02:50.9]} 20... Qb8 {[%clk 0:02:33.6]} 21.
Qa5 {[%clk 0:02:46.6]} 21... Re7 {[%clk 0:02:09.9]} 22. Ne2 {[%clk 0:02:12.2]}
22... Nd3 {[%clk 0:01:29.2]} 23. Nec3 {[%clk 0:01:58.7]} 23... Ne8 {[%clk
0:01:17.1]} 24. Ra1 {[%clk 0:01:55.1]} 24... Rb7 {[%clk 0:01:10.6]} 25. Rd1
{[%clk 0:01:12]} 25... Nb2 {[%clk 0:00:57.4]} 26. Rb1 {[%clk 0:00:36.7]} 26...
Nd3 {[%clk 0:00:52.4]} 27. Rd1 {[%clk 0:00:32.2]} 27... Nb4 {[%clk 0:00:49.4]}
28. Bf4 {[%clk 0:00:24]} 28... Nc2 {[%clk 0:00:43.5]} 29. h3 {[%clk 0:00:16.8]}
29... Nd4 {[%clk 0:00:39.8]} 30. Nxd4 {[%clk 0:00:03.9]} 30... Bxd4+ {[%clk
0:00:38.5]} 31. Kh2 {[%clk 0:00:03.4]} 31... Rxb3 {[%clk 0:00:24.2]} 32. Ne2
{[%clk 0:00:03.6]} 32... Bf6 {[%clk 0:00:20.5]} 33. Qd2 {[%clk 0:00:02.7]} 33...
Rb2 {[%clk 0:00:19.3]} 34. Qe3 {[%clk 0:00:02.7]} 34... Qb3 {[%clk 0:00:18.7]}
35. Rd3 {[%clk 0:00:01.1]} 35... Qc2 {[%clk 0:00:18.1]} 0-1